[Event "*** SCC Grand Prix: Titled Tuesday Blitz"]
[Site "Chess.com"]
[Date "2020.07.14"]
[Round "9"]
[White "Angel_Hranitel_37"]
[Black "iaraldinho"]
[Result "1-0"]
[WhiteElo "2424"]
[BlackElo "2527"]
[TimeControl "180+1"]
[EndTime "11:42:48 PDT"]
[Termination "Angel_Hranitel_37 won by resignation"]

1. d4 {[%clk 0:03:00.9]} 1... f5 {[%clk 0:02:59.5]} 2. g3 {[%clk 0:03:00.3]}
2... Nf6 {[%clk 0:02:59.6]} 3. Bg2 {[%clk 0:03:01.2]} 3... g6 {[%clk 0:02:59.6]}
4. Nf3 {[%clk 0:02:57.6]} 4... Bg7 {[%clk 0:02:59.2]} 5. O-O {[%clk 0:02:58.5]}
5... O-O {[%clk 0:02:59.1]} 6. c4 {[%clk 0:02:59.4]} 6... d6 {[%clk 0:02:59.6]}
7. Nc3 {[%clk 0:02:59.4]} 7... Qe8 {[%clk 0:03:00.1]} 8. Re1 {[%clk 0:02:59.4]}
8... Qf7 {[%clk 0:02:59.8]} 9. e4 {[%clk 0:03:00.1]} 9... Nxe4 {[%clk 0:02:59]}
10. Nxe4 {[%clk 0:03:01]} 10... fxe4 {[%clk 0:02:59.6]} 11. Rxe4 {[%clk
0:03:01.9]} 11... Qxc4 {[%clk 0:02:59.4]} 12. Rxe7 {[%clk 0:03:01.2]} 12... Bg4
{[%clk 0:02:55.3]} 13. Ne5 {[%clk 0:02:27.9]} 13... dxe5 {[%clk 0:02:32.1]} 14.
Qxg4 {[%clk 0:02:26.5]} 14... Nc6 {[%clk 0:02:31.5]} 15. Rxc7 {[%clk 0:02:08.4]}
15... exd4 {[%clk 0:02:25.7]} 16. Qd7 {[%clk 0:02:03.6]} 16... Rf7 {[%clk
0:01:56.2]} 17. Bd5 {[%clk 0:02:02.5]} 17... Qxd5 {[%clk 0:01:56.3]} 18. Qxd5
{[%clk 0:02:00.8]} 1-0

[Event "*** SCC Grand Prix: Titled Tuesday Blitz"]
[Site "Chess.com"]
[Date "2020.07.14"]
[Round "9"]
[White "elohunter1999"]
[Black "SGchess01"]
[Result "1-0"]
[WhiteElo "2485"]
[BlackElo "2617"]
[TimeControl "180+1"]
[EndTime "11:43:09 PDT"]
[Termination "elohunter1999 won by resignation"]

1. e4 {[%clk 0:03:00.9]} 1... Nf6 {[%clk 0:02:59.8]} 2. e5 {[%clk 0:03:00.1]}
2... Nd5 {[%clk 0:02:59.9]} 3. d4 {[%clk 0:03:00.1]} 3... d6 {[%clk 0:02:59.8]}
4. Nf3 {[%clk 0:03:00.5]} 4... Nb6 {[%clk 0:02:59.2]} 5. a4 {[%clk 0:03:00.2]}
5... a5 {[%clk 0:02:59.1]} 6. Nc3 {[%clk 0:02:58.2]} 6... g6 {[%clk 0:02:57.3]}
7. h4 {[%clk 0:02:58]} 7... Bg4 {[%clk 0:02:56.5]} 8. h5 {[%clk 0:02:37.8]} 8...
gxh5 {[%clk 0:02:54.6]} 9. Be2 {[%clk 0:02:32.5]} 9... Nc6 {[%clk 0:02:54.1]}
10. Ng5 {[%clk 0:02:08.1]} 10... Bxe2 {[%clk 0:02:50.8]} 11. Qxe2 {[%clk
0:02:08.8]} 11... Nxd4 {[%clk 0:02:49.5]} 12. Qxh5 {[%clk 0:02:01.8]} 12...
Nxc2+ {[%clk 0:02:41.6]} 13. Kd1 {[%clk 0:01:52.2]} 13... Nxa1 {[%clk
0:02:39.2]} 14. e6 {[%clk 0:01:28.4]} 14... Qb8 {[%clk 0:02:37.1]} 15. Nxf7
{[%clk 0:01:04.3]} 15... c6 {[%clk 0:02:32.7]} 16. Nxd6+ {[%clk 0:01:03.3]}
16... Kd8 {[%clk 0:02:32.7]} 17. Qe8+ {[%clk 0:01:03.6]} 17... Kc7 {[%clk
0:02:32.6]} 18. Ncb5+ {[%clk 0:01:03.9]} 1-0

[Event "*** SCC Grand Prix: Titled Tuesday Blitz"]
[Site "Chess.com"]
[Date "2020.07.14"]
[Round "9"]
[White "CroissantNeuf"]
[Black "vovachesss"]
[Result "1-0"]
[WhiteElo "2422"]
[BlackElo "2583"]
[TimeControl "180+1"]
[EndTime "11:43:12 PDT"]
[Termination "CroissantNeuf won by resignation"]

1. e4 {[%clk 0:02:56]} 1... d5 {[%clk 0:02:59.7]} 2. exd5 {[%clk 0:02:55.3]}
2... c6 {[%clk 0:03:00.6]} 3. dxc6 {[%clk 0:02:54.8]} 3... Nf6 {[%clk
0:03:00.6]} 4. cxb7 {[%clk 0:02:50.1]} 4... Bxb7 {[%clk 0:03:01]} 5. d4 {[%clk
0:02:50.8]} 5... Nbd7 {[%clk 0:03:01]} 6. Nf3 {[%clk 0:02:50.2]} 6... e6 {[%clk
0:03:01.4]} 7. Be2 {[%clk 0:02:49.7]} 7... Bd6 {[%clk 0:03:01.9]} 8. O-O {[%clk
0:02:49.6]} 8... O-O {[%clk 0:03:02.7]} 9. c4 {[%clk 0:02:49.6]} 9... Qc7 {[%clk
0:03:03.1]} 10. h3 {[%clk 0:02:43.6]} 10... Rab8 {[%clk 0:03:01.1]} 11. Nc3
{[%clk 0:02:40.3]} 11... a6 {[%clk 0:03:00]} 12. c5 {[%clk 0:02:34.4]} 12... Bf4
{[%clk 0:02:59.5]} 13. Bxf4 {[%clk 0:02:27.3]} 13... Qxf4 {[%clk 0:03:00.4]} 14.
Qd2 {[%clk 0:02:27.1]} 14... Qf5 {[%clk 0:03:00.5]} 15. Rab1 {[%clk 0:02:13.9]}
15... Rfd8 {[%clk 0:03:00.3]} 16. b4 {[%clk 0:02:10.7]} 16... e5 {[%clk
0:02:57.1]} 17. d5 {[%clk 0:01:48.6]} 17... e4 {[%clk 0:02:39.8]} 18. Nd4 {[%clk
0:01:47.9]} 18... Qe5 {[%clk 0:02:19.4]} 19. c6 {[%clk 0:01:40.8]} 1-0

[Event "*** SCC Grand Prix: Titled Tuesday Blitz"]
[Site "Chess.com"]
[Date "2020.07.14"]
[Round "9"]
[White "Shushik"]
[Black "Margarita2907"]
[Result "1-0"]
[WhiteElo "2209"]
[BlackElo "2078"]
[TimeControl "180+1"]
[EndTime "11:43:28 PDT"]
[Termination "Shushik won by resignation"]

1. e4 {[%clk 0:03:00.9]} 1... c5 {[%clk 0:02:53.5]} 2. Ne2 {[%clk 0:03:00]} 2...
d6 {[%clk 0:02:50.2]} 3. g3 {[%clk 0:02:59.2]} 3... Nf6 {[%clk 0:02:49.1]} 4.
Bg2 {[%clk 0:02:59.1]} 4... g6 {[%clk 0:02:48.6]} 5. c3 {[%clk 0:02:58.9]} 5...
Bg7 {[%clk 0:02:48.5]} 6. d4 {[%clk 0:02:58.7]} 6... cxd4 {[%clk 0:02:46.7]} 7.
cxd4 {[%clk 0:02:58.2]} 7... O-O {[%clk 0:02:44.7]} 8. Nbc3 {[%clk 0:02:57.8]}
8... a6 {[%clk 0:02:41.5]} 9. O-O {[%clk 0:02:56.8]} 9... Nc6 {[%clk 0:02:34.7]}
10. f4 {[%clk 0:02:54.7]} 10... Ne8 {[%clk 0:02:19.8]} 11. Be3 {[%clk
0:02:51.4]} 11... e6 {[%clk 0:02:17.4]} 12. Rc1 {[%clk 0:02:47.5]} 12... f5
{[%clk 0:02:16.4]} 13. e5 {[%clk 0:02:42.1]} 13... dxe5 {[%clk 0:02:11.4]} 14.
dxe5 {[%clk 0:02:41.6]} 14... Nc7 {[%clk 0:02:05.9]} 15. Bb6 {[%clk 0:02:27.6]}
15... Qe7 {[%clk 0:02:01.4]} 16. Qd6 {[%clk 0:02:20.9]} 16... Nb5 {[%clk
0:01:40.3]} 17. Nxb5 {[%clk 0:02:16]} 17... axb5 {[%clk 0:01:40.8]} 18. Rxc6
{[%clk 0:02:14.2]} 18... Qf7 {[%clk 0:01:24.2]} 19. Rc7 {[%clk 0:02:11.5]} 19...
Qe8 {[%clk 0:01:22]} 20. Re7 {[%clk 0:02:09.7]} 1-0

[Event "*** SCC Grand Prix: Titled Tuesday Blitz"]
[Site "Chess.com"]
[Date "2020.07.14"]
[Round "9"]
[White "Tash_Boy"]
[Black "Iustin106"]
[Result "1-0"]
[WhiteElo "2677"]
[BlackElo "2364"]
[TimeControl "180+1"]
[EndTime "11:43:41 PDT"]
[Termination "Tash_Boy won by resignation"]

1. e4 {[%clk 0:03:00.9]} 1... c5 {[%clk 0:02:58.6]} 2. Nf3 {[%clk 0:03:00.7]}
2... d6 {[%clk 0:02:58.1]} 3. d4 {[%clk 0:03:01.1]} 3... cxd4 {[%clk 0:02:59]}
4. Nxd4 {[%clk 0:03:01.8]} 4... Nf6 {[%clk 0:02:59.5]} 5. Nc3 {[%clk 0:03:02.3]}
5... a6 {[%clk 0:03:00.1]} 6. Bg5 {[%clk 0:03:01.9]} 6... Nbd7 {[%clk
0:02:57.2]} 7. Qe2 {[%clk 0:03:02]} 7... h6 {[%clk 0:02:56.4]} 8. Bd2 {[%clk
0:03:01.1]} 8... b5 {[%clk 0:02:51.8]} 9. a3 {[%clk 0:02:59.8]} 9... Bb7 {[%clk
0:02:51]} 10. O-O-O {[%clk 0:03:00.1]} 10... Qc7 {[%clk 0:02:44.4]} 11. h4
{[%clk 0:03:00.3]} 11... e6 {[%clk 0:02:43.7]} 12. Rh3 {[%clk 0:02:59.3]} 12...
Nc5 {[%clk 0:02:35.4]} 13. f3 {[%clk 0:02:54.9]} 13... Be7 {[%clk 0:02:28.7]}
14. g4 {[%clk 0:02:54.7]} 14... Nfd7 {[%clk 0:02:22.8]} 15. g5 {[%clk
0:02:53.9]} 15... hxg5 {[%clk 0:02:19.6]} 16. hxg5 {[%clk 0:02:54.8]} 16... Rxh3
{[%clk 0:02:18.5]} 17. Bxh3 {[%clk 0:02:55.7]} 17... g6 {[%clk 0:02:18.8]} 18.
Kb1 {[%clk 0:02:54.4]} 18... O-O-O {[%clk 0:02:17.5]} 19. f4 {[%clk 0:02:43.7]}
19... Rh8 {[%clk 0:02:11.6]} 20. Bg4 {[%clk 0:02:42.5]} 20... Kb8 {[%clk
0:02:05.9]} 21. f5 {[%clk 0:02:25.4]} 21... exf5 {[%clk 0:02:02.8]} 22. exf5
{[%clk 0:02:25.2]} 22... Ne5 {[%clk 0:02:03.4]} 23. f6 {[%clk 0:02:24]} 23...
Bd8 {[%clk 0:02:01.1]} 24. Bf4 {[%clk 0:02:20.7]} 24... Rh4 {[%clk 0:01:48.8]}
25. Bxe5 {[%clk 0:02:12]} 25... dxe5 {[%clk 0:01:49.7]} 26. Ndxb5 {[%clk
0:02:12.4]} 26... axb5 {[%clk 0:01:45]} 27. Nxb5 {[%clk 0:02:12.5]} 27... Qb6
{[%clk 0:01:31.5]} 28. Qxe5+ {[%clk 0:02:11.7]} 28... Bc7 {[%clk 0:01:31.5]} 29.
Qe8+ {[%clk 0:02:08.7]} 1-0

[Event "*** SCC Grand Prix: Titled Tuesday Blitz"]
[Site "Chess.com"]
[Date "2020.07.14"]
[Round "9"]
[White "StephenDedalus83"]
[Black "Kildepiotr"]
[Result "1-0"]
[WhiteElo "2812"]
[BlackElo "2602"]
[TimeControl "180+1"]
[EndTime "11:43:51 PDT"]
[Termination "StephenDedalus83 won by resignation"]

1. e4 {[%clk 0:03:00.9]} 1... g6 {[%clk 0:02:59.6]} 2. d4 {[%clk 0:02:59.8]}
2... Bg7 {[%clk 0:03:00.1]} 3. Nc3 {[%clk 0:02:59.5]} 3... c6 {[%clk 0:03:00.5]}
4. h3 {[%clk 0:02:48.6]} 4... d6 {[%clk 0:02:49.8]} 5. Nf3 {[%clk 0:02:47.4]}
5... Nd7 {[%clk 0:02:46.5]} 6. a4 {[%clk 0:02:46.6]} 6... Ngf6 {[%clk
0:02:39.4]} 7. Bc4 {[%clk 0:02:46.1]} 7... e5 {[%clk 0:02:36.9]} 8. dxe5 {[%clk
0:02:45]} 8... dxe5 {[%clk 0:02:37]} 9. Qd6 {[%clk 0:02:40.2]} 9... Qe7 {[%clk
0:02:36.3]} 10. Qxe7+ {[%clk 0:02:38.4]} 10... Kxe7 {[%clk 0:02:37.2]} 11. b3
{[%clk 0:02:38.3]} 11... b6 {[%clk 0:02:15.1]} 12. Ba3+ {[%clk 0:02:33]} 12...
c5 {[%clk 0:02:15.2]} 13. Ng5 {[%clk 0:02:27.7]} 13... Rf8 {[%clk 0:02:09.2]}
14. Nd5+ {[%clk 0:02:26.8]} 14... Nxd5 {[%clk 0:02:08.9]} 15. Bxd5 {[%clk
0:02:26.2]} 15... Rb8 {[%clk 0:02:08.8]} 16. Nxh7 {[%clk 0:02:25.9]} 16... Rh8
{[%clk 0:01:58]} 17. Ng5 {[%clk 0:02:25.6]} 17... f6 {[%clk 0:01:56.6]} 18. Ne6
{[%clk 0:02:21.6]} 18... Bh6 {[%clk 0:01:56.4]} 19. Nc7 {[%clk 0:02:21.4]} 19...
f5 {[%clk 0:01:45.1]} 20. exf5 {[%clk 0:02:16.7]} 20... gxf5 {[%clk 0:01:44.9]}
21. Bc4 {[%clk 0:02:16.7]} 21... Nf6 {[%clk 0:01:44.3]} 22. Bb2 {[%clk
0:02:16.1]} 22... Bb7 {[%clk 0:01:21.4]} 23. Bxe5 {[%clk 0:02:10.4]} 23... Bxg2
{[%clk 0:01:21]} 24. Rg1 {[%clk 0:02:09.9]} 24... Bxh3 {[%clk 0:01:21.1]} 25.
Nd5+ {[%clk 0:02:07.8]} 25... Nxd5 {[%clk 0:01:20.6]} 26. Bxb8 {[%clk
0:02:07.5]} 26... Nc3 {[%clk 0:01:10.8]} 27. Be5 {[%clk 0:02:06.4]} 27... Rd8
{[%clk 0:01:10.4]} 28. Bxc3 {[%clk 0:02:06.2]} 1-0

[Event "*** SCC Grand Prix: Titled Tuesday Blitz"]
[Site "Chess.com"]
[Date "2020.07.14"]
[Round "9"]
[White "Indianlad"]
[Black "TimofeevAr"]
[Result "1-0"]
[WhiteElo "2951"]
[BlackElo "2803"]
[TimeControl "180+1"]
[EndTime "11:43:57 PDT"]
[Termination "Indianlad won by resignation"]

1. e4 {[%clk 0:03:00.9]} 1... c5 {[%clk 0:02:59.3]} 2. Nc3 {[%clk 0:03:01.1]}
2... d6 {[%clk 0:02:57.6]} 3. f4 {[%clk 0:03:01.1]} 3... g6 {[%clk 0:02:56.7]}
4. Nf3 {[%clk 0:03:01.5]} 4... Bg7 {[%clk 0:02:56.7]} 5. Bc4 {[%clk 0:03:01.6]}
5... Nc6 {[%clk 0:02:55.2]} 6. O-O {[%clk 0:03:01.8]} 6... e6 {[%clk 0:02:53.3]}
7. d4 {[%clk 0:03:02.1]} 7... cxd4 {[%clk 0:02:45.6]} 8. Nb5 {[%clk 0:03:02.2]}
8... Nge7 {[%clk 0:02:45.4]} 9. Bb3 {[%clk 0:03:00.2]} 9... O-O {[%clk
0:02:43.4]} 10. Nbxd4 {[%clk 0:03:00.8]} 10... Nxd4 {[%clk 0:02:38.1]} 11. Nxd4
{[%clk 0:03:01.7]} 11... Nc6 {[%clk 0:02:36.5]} 12. Be3 {[%clk 0:03:00.3]} 12...
a6 {[%clk 0:02:28.8]} 13. c3 {[%clk 0:02:59.6]} 13... Na5 {[%clk 0:02:26.3]} 14.
Qd2 {[%clk 0:02:56.2]} 14... b5 {[%clk 0:02:23.9]} 15. f5 {[%clk 0:02:56]} 15...
e5 {[%clk 0:02:15.4]} 16. Bd5 {[%clk 0:02:08.4]} 16... exd4 {[%clk 0:02:07.4]}
17. Bxd4 {[%clk 0:02:09.1]} 17... Nc4 {[%clk 0:02:00.5]} 18. Qf4 {[%clk
0:01:41.9]} 18... Ra7 {[%clk 0:01:30.6]} 19. f6 {[%clk 0:01:39.1]} 19... Bh8
{[%clk 0:01:30.2]} 20. Bxa7 {[%clk 0:01:38.5]} 1-0

[Event "*** SCC Grand Prix: Titled Tuesday Blitz"]
[Site "Chess.com"]
[Date "2020.07.14"]
[Round "9"]
[White "aNaartjieZA"]
[Black "okriak"]
[Result "0-1"]
[WhiteElo "2490"]
[BlackElo "2688"]
[TimeControl "180+1"]
[EndTime "11:44:14 PDT"]
[Termination "okriak won by resignation"]

1. e4 {[%clk 0:03:00.9]} 1... e6 {[%clk 0:02:58]} 2. d3 {[%clk 0:03:00.6]} 2...
c5 {[%clk 0:02:56.7]} 3. Nf3 {[%clk 0:03:00.1]} 3... Nc6 {[%clk 0:02:57]} 4. g3
{[%clk 0:03:00.4]} 4... g6 {[%clk 0:02:57]} 5. Bg2 {[%clk 0:03:00.7]} 5... Bg7
{[%clk 0:02:57.3]} 6. O-O {[%clk 0:03:01.4]} 6... Nge7 {[%clk 0:02:56.5]} 7. Re1
{[%clk 0:03:01.5]} 7... d6 {[%clk 0:02:56.6]} 8. Nbd2 {[%clk 0:03:01.6]} 8...
O-O {[%clk 0:02:56.2]} 9. a4 {[%clk 0:03:00.7]} 9... e5 {[%clk 0:02:55.7]} 10.
c3 {[%clk 0:03:00.5]} 10... h6 {[%clk 0:02:55.6]} 11. Nf1 {[%clk 0:02:59]} 11...
Kh7 {[%clk 0:02:54.3]} 12. Nh4 {[%clk 0:02:51.2]} 12... f5 {[%clk 0:02:51.9]}
13. exf5 {[%clk 0:02:51.3]} 13... Nxf5 {[%clk 0:02:51.6]} 14. Nxf5 {[%clk
0:02:50.8]} 14... Bxf5 {[%clk 0:02:51.1]} 15. f4 {[%clk 0:02:50.9]} 15... Qd7
{[%clk 0:02:46.8]} 16. Ne3 {[%clk 0:02:46.7]} 16... Bh3 {[%clk 0:02:44.2]} 17.
Bxh3 {[%clk 0:02:39.8]} 17... Qxh3 {[%clk 0:02:43.4]} 18. Qg4 {[%clk 0:02:40.4]}
18... Qxg4 {[%clk 0:02:42.8]} 19. Nxg4 {[%clk 0:02:40.6]} 19... h5 {[%clk
0:02:39.4]} 20. Nf2 {[%clk 0:02:40.6]} 20... exf4 {[%clk 0:02:36.1]} 21. Bxf4
{[%clk 0:02:39.5]} 21... Ne5 {[%clk 0:02:36.1]} 22. Bxe5 {[%clk 0:02:39.3]}
22... Bxe5 {[%clk 0:02:35.3]} 23. Ne4 {[%clk 0:02:38.7]} 23... b6 {[%clk
0:02:24.5]} 24. Rf1 {[%clk 0:02:38]} 24... Kg7 {[%clk 0:02:18.4]} 25. Kg2 {[%clk
0:02:35.7]} 25... Rae8 {[%clk 0:01:58.8]} 26. Rxf8 {[%clk 0:02:30.3]} 26... Rxf8
{[%clk 0:01:58.6]} 27. Rf1 {[%clk 0:02:30.8]} 27... d5 {[%clk 0:01:55.3]} 28.
Ng5 {[%clk 0:02:28.8]} 28... Rxf1 {[%clk 0:01:53.8]} 29. Kxf1 {[%clk 0:02:28.9]}
29... Kf6 {[%clk 0:01:53]} 30. Nf3 {[%clk 0:02:29]} 30... Bd6 {[%clk 0:01:47.6]}
31. Kf2 {[%clk 0:02:29]} 31... Kf5 {[%clk 0:01:46.3]} 32. Nh4+ {[%clk
0:02:27.8]} 32... Kf6 {[%clk 0:01:45.7]} 33. Nf3 {[%clk 0:02:27.7]} 33... g5
{[%clk 0:01:45.8]} 34. h3 {[%clk 0:02:27.4]} 34... Kf5 {[%clk 0:01:45.7]} 35.
Ng1 {[%clk 0:02:21.9]} 35... c4 {[%clk 0:01:35.3]} 36. dxc4 {[%clk 0:02:19.5]}
36... Bc5+ {[%clk 0:01:35]} 37. Kg2 {[%clk 0:02:14.3]} 37... Bxg1 {[%clk
0:01:34.2]} 38. Kxg1 {[%clk 0:02:14.3]} 38... dxc4 {[%clk 0:01:34.1]} 39. Kf1
{[%clk 0:02:09.3]} 39... Ke4 {[%clk 0:01:30.8]} 40. Ke2 {[%clk 0:02:08.7]} 40...
g4 {[%clk 0:01:30.9]} 0-1

[Event "*** SCC Grand Prix: Titled Tuesday Blitz"]
[Site "Chess.com"]
[Date "2020.07.14"]
[Round "9"]
[White "Titus369"]
[Black "Xeniya2005"]
[Result "1-0"]
[WhiteElo "2529"]
[BlackElo "2393"]
[TimeControl "180+1"]
[EndTime "11:44:17 PDT"]
[Termination "Titus369 won by checkmate"]

1. e4 {[%clk 0:03:00.9]} 1... e6 {[%clk 0:03:00.1]} 2. d4 {[%clk 0:03:00.3]}
2... d5 {[%clk 0:03:00]} 3. Nd2 {[%clk 0:03:00.5]} 3... c5 {[%clk 0:02:59.1]} 4.
Ngf3 {[%clk 0:03:00.1]} 4... Nc6 {[%clk 0:02:46.3]} 5. exd5 {[%clk 0:02:56.3]}
5... Qxd5 {[%clk 0:02:45.4]} 6. Bc4 {[%clk 0:02:55.2]} 6... Qd8 {[%clk
0:02:44.4]} 7. O-O {[%clk 0:02:55.5]} 7... cxd4 {[%clk 0:02:42.1]} 8. Nb3 {[%clk
0:02:54.3]} 8... Nf6 {[%clk 0:02:41.3]} 9. Nbxd4 {[%clk 0:02:54]} 9... Nxd4
{[%clk 0:02:39.3]} 10. Nxd4 {[%clk 0:02:51.4]} 10... Be7 {[%clk 0:02:39]} 11. c3
{[%clk 0:02:33.7]} 11... O-O {[%clk 0:02:37.2]} 12. Bf4 {[%clk 0:02:30.9]} 12...
a6 {[%clk 0:02:32.9]} 13. a4 {[%clk 0:02:22.9]} 13... Bd7 {[%clk 0:02:27.9]} 14.
Qe2 {[%clk 0:02:21.1]} 14... Rc8 {[%clk 0:02:25.1]} 15. Rfd1 {[%clk 0:02:13.5]}
15... Re8 {[%clk 0:01:52.1]} 16. Nf3 {[%clk 0:02:04.6]} 16... Qa5 {[%clk
0:01:41.6]} 17. Ne5 {[%clk 0:02:00.1]} 17... Bc6 {[%clk 0:01:29.5]} 18. Nxf7
{[%clk 0:01:30.8]} 18... Kxf7 {[%clk 0:01:00.6]} 19. Qxe6+ {[%clk 0:01:29.8]}
19... Kf8 {[%clk 0:01:00.2]} 20. Qf7# {[%clk 0:01:29.5]} 1-0

[Event "*** SCC Grand Prix: Titled Tuesday Blitz"]
[Site "Chess.com"]
[Date "2020.07.14"]
[Round "9"]
[White "SargissyanSargis"]
[Black "XxPetroffsxX"]
[Result "1-0"]
[WhiteElo "2304"]
[BlackElo "1971"]
[TimeControl "180+1"]
[EndTime "11:44:23 PDT"]
[Termination "SargissyanSargis won by resignation"]

1. e4 {[%clk 0:03:00.9]} 1... e5 {[%clk 0:02:59.5]} 2. Nf3 {[%clk 0:02:59.7]}
2... Nc6 {[%clk 0:02:59.1]} 3. Bb5 {[%clk 0:03:00]} 3... Nf6 {[%clk 0:02:58.4]}
4. d3 {[%clk 0:02:57.1]} 4... Bc5 {[%clk 0:02:55.4]} 5. Bxc6 {[%clk 0:02:57.3]}
5... dxc6 {[%clk 0:02:54.6]} 6. h3 {[%clk 0:02:57.9]} 6... Nd7 {[%clk
0:02:52.2]} 7. Nbd2 {[%clk 0:02:55.2]} 7... O-O {[%clk 0:02:50.7]} 8. Nc4 {[%clk
0:02:55.4]} 8... Qe7 {[%clk 0:02:42.9]} 9. O-O {[%clk 0:02:51.7]} 9... a6 {[%clk
0:02:35.8]} 10. Ne3 {[%clk 0:02:40.8]} 10... Bxe3 {[%clk 0:02:29.4]} 11. Bxe3
{[%clk 0:02:38.7]} 11... g6 {[%clk 0:02:13.8]} 12. Bh6 {[%clk 0:02:18.4]} 12...
Re8 {[%clk 0:02:04.1]} 13. Qd2 {[%clk 0:02:18.8]} 13... f6 {[%clk 0:02:00.1]}
14. Nh2 {[%clk 0:02:15.1]} 14... Nc5 {[%clk 0:01:52.7]} 15. f4 {[%clk
0:02:15.4]} 15... Ne6 {[%clk 0:01:48.4]} 16. fxe5 {[%clk 0:02:05.5]} 16... fxe5
{[%clk 0:01:47.8]} 17. Ng4 {[%clk 0:02:06.1]} 17... Nf4 {[%clk 0:01:42.6]} 18.
Bxf4 {[%clk 0:02:01.6]} 18... exf4 {[%clk 0:01:41.9]} 19. Qxf4 {[%clk
0:02:01.3]} 19... Rf8 {[%clk 0:01:40]} 20. Nf6+ {[%clk 0:01:51.6]} 20... Kg7
{[%clk 0:01:36.3]} 21. e5 {[%clk 0:01:51.5]} 21... Be6 {[%clk 0:01:29.4]} 22.
Rae1 {[%clk 0:01:40.7]} 22... Rad8 {[%clk 0:01:19.6]} 23. Qh4 {[%clk 0:01:39.1]}
23... h6 {[%clk 0:01:17.6]} 24. Nh5+ {[%clk 0:01:38.2]} 1-0

[Event "*** SCC Grand Prix: Titled Tuesday Blitz"]
[Site "Chess.com"]
[Date "2020.07.14"]
[Round "9"]
[White "OnePeculiarConundrum"]
[Black "VladaSviridova"]
[Result "1-0"]
[WhiteElo "2333"]
[BlackElo "2118"]
[TimeControl "180+1"]
[EndTime "11:44:31 PDT"]
[Termination "OnePeculiarConundrum won by checkmate"]

1. e4 {[%clk 0:03:00.9]} 1... e6 {[%clk 0:03:00.3]} 2. d4 {[%clk 0:03:00.6]}
2... d5 {[%clk 0:03:00.8]} 3. e5 {[%clk 0:03:00.8]} 3... c5 {[%clk 0:03:00.1]}
4. c3 {[%clk 0:03:00.1]} 4... Qb6 {[%clk 0:03:00.4]} 5. Nf3 {[%clk 0:02:59.9]}
5... Nc6 {[%clk 0:03:00.6]} 6. a3 {[%clk 0:03:00.1]} 6... c4 {[%clk 0:03:01]} 7.
Nbd2 {[%clk 0:03:00]} 7... Na5 {[%clk 0:03:01]} 8. Be2 {[%clk 0:03:00]} 8... Bd7
{[%clk 0:03:00.8]} 9. O-O {[%clk 0:03:00.3]} 9... Ne7 {[%clk 0:03:01.2]} 10. Kh1
{[%clk 0:03:00.5]} 10... h6 {[%clk 0:03:01.6]} 11. Ng1 {[%clk 0:03:00.7]} 11...
O-O-O {[%clk 0:03:00.4]} 12. f4 {[%clk 0:03:00.8]} 12... Kb8 {[%clk 0:02:52.1]}
13. Rb1 {[%clk 0:03:00.1]} 13... Qc7 {[%clk 0:02:52.1]} 14. Ngf3 {[%clk
0:02:58.1]} 14... Nc8 {[%clk 0:02:50.9]} 15. Qe1 {[%clk 0:02:46]} 15... Ba4
{[%clk 0:02:45.3]} 16. Bd1 {[%clk 0:02:46]} 16... Nb3 {[%clk 0:02:21.4]} 17.
Nxb3 {[%clk 0:02:44.5]} 17... cxb3 {[%clk 0:02:19.7]} 18. Be2 {[%clk 0:02:43.5]}
18... Nb6 {[%clk 0:02:18.6]} 19. Be3 {[%clk 0:02:43.1]} 19... Nc4 {[%clk
0:02:16.3]} 20. Qf2 {[%clk 0:02:42.9]} 20... b6 {[%clk 0:02:12.8]} 21. Nd2
{[%clk 0:02:40.4]} 21... Be7 {[%clk 0:02:09.1]} 22. Nxc4 {[%clk 0:02:38.7]}
22... dxc4 {[%clk 0:02:09.1]} 23. f5 {[%clk 0:02:38.3]} 23... Bg5 {[%clk
0:01:56]} 24. Rbe1 {[%clk 0:02:33.5]} 24... exf5 {[%clk 0:01:45.5]} 25. Bxg5
{[%clk 0:02:32.6]} 25... hxg5 {[%clk 0:01:45.3]} 26. Qxf5 {[%clk 0:02:32.7]}
26... f6 {[%clk 0:01:43]} 27. Bf3 {[%clk 0:02:28]} 27... Rh6 {[%clk 0:01:38.1]}
28. Qe4 {[%clk 0:02:24.9]} 28... Kc8 {[%clk 0:01:34]} 29. e6 {[%clk 0:02:18]}
29... Qb8 {[%clk 0:01:27.1]} 30. h3 {[%clk 0:02:11.3]} 30... Rdh8 {[%clk
0:01:22.6]} 31. Bg4 {[%clk 0:02:06.9]} 31... Kd8 {[%clk 0:01:09.4]} 32. d5
{[%clk 0:02:04.2]} 32... Qd6 {[%clk 0:00:59.2]} 33. Qxc4 {[%clk 0:01:57.8]}
33... Be8 {[%clk 0:00:54.7]} 34. e7+ {[%clk 0:01:55.5]} 34... Qxe7 {[%clk
0:00:51.4]} 35. Qc8# {[%clk 0:01:56.4]} 1-0

[Event "*** SCC Grand Prix: Titled Tuesday Blitz"]
[Site "Chess.com"]
[Date "2020.07.14"]
[Round "9"]
[White "Fighter008"]
[Black "GMNickPert"]
[Result "0-1"]
[WhiteElo "2527"]
[BlackElo "2696"]
[TimeControl "180+1"]
[EndTime "11:44:35 PDT"]
[Termination "GMNickPert won by checkmate"]

1. e4 {[%clk 0:03:00.9]} 1... c5 {[%clk 0:02:59.5]} 2. Nf3 {[%clk 0:02:56.3]}
2... Nc6 {[%clk 0:02:59.4]} 3. Bb5 {[%clk 0:02:55.5]} 3... g6 {[%clk 0:02:59.1]}
4. O-O {[%clk 0:02:54.6]} 4... Bg7 {[%clk 0:02:59.4]} 5. c3 {[%clk 0:02:54.6]}
5... Nf6 {[%clk 0:02:58.4]} 6. d4 {[%clk 0:02:54.7]} 6... d5 {[%clk 0:02:50.4]}
7. e5 {[%clk 0:02:46.2]} 7... Ne4 {[%clk 0:02:49.8]} 8. Nbd2 {[%clk 0:02:36.9]}
8... O-O {[%clk 0:02:46.9]} 9. Re1 {[%clk 0:02:33.5]} 9... cxd4 {[%clk
0:02:45.3]} 10. cxd4 {[%clk 0:02:28.9]} 10... Qb6 {[%clk 0:02:42.2]} 11. Bxc6
{[%clk 0:02:26.3]} 11... Qxc6 {[%clk 0:02:39]} 12. Nb3 {[%clk 0:02:15.7]} 12...
a5 {[%clk 0:02:27.7]} 13. a4 {[%clk 0:02:11.5]} 13... Bf5 {[%clk 0:02:22.9]} 14.
Be3 {[%clk 0:02:04.4]} 14... Qb6 {[%clk 0:02:20.8]} 15. h3 {[%clk 0:01:57.6]}
15... Rfc8 {[%clk 0:02:17.2]} 16. g4 {[%clk 0:01:55.2]} 16... Nxf2 {[%clk
0:02:13.6]} 17. Bxf2 {[%clk 0:01:35.5]} 17... Bc2 {[%clk 0:02:13.5]} 18. Qd2
{[%clk 0:01:33.1]} 18... Qxb3 {[%clk 0:02:12.8]} 19. Qf4 {[%clk 0:01:31.9]}
19... e6 {[%clk 0:01:58.8]} 20. Bh4 {[%clk 0:01:21.3]} 20... Be4 {[%clk
0:01:55]} 21. Nd2 {[%clk 0:01:19.4]} 21... Qxb2 {[%clk 0:01:52.6]} 22. Nxe4
{[%clk 0:01:19.3]} 22... dxe4 {[%clk 0:01:52.5]} 23. Bf6 {[%clk 0:01:19.6]}
23... Qxd4+ {[%clk 0:01:49]} 24. Kh1 {[%clk 0:01:19.9]} 24... Rc2 {[%clk
0:01:46.6]} 25. Rad1 {[%clk 0:01:18.5]} 25... Qc3 {[%clk 0:01:41.9]} 26. Re3
{[%clk 0:01:17.8]} 26... Qc7 {[%clk 0:01:29.4]} 27. Qxe4 {[%clk 0:01:13.8]}
27... Rc8 {[%clk 0:01:28.2]} 28. Rf3 {[%clk 0:01:10.4]} 28... Bxf6 {[%clk
0:01:27.5]} 29. exf6 {[%clk 0:01:10.1]} 29... Qh2# {[%clk 0:01:26.9]} 0-1